bitfinex-derivatives/quotes_ETHF0:USTF0_20250830
["timestamp","ask_amount","ask_price","bid_price","bid_amount"]
[1756576804337,0.2945,4365.8,4364.9,0.232]
[1756576804738,0.1924,4365.1,4365.0,0.232]
[1756576805037,0.4869,4365.1,4365.0,0.232]
[1756576806141,0.1924,4365.1,4364.2,3.2078]
[1756576806339,0.1924,4365.1,4364.3,0.232]
[1756576806540,0.1924,4365.1,4364.2,3.2078]
[1756576806738,3.2078,4364.7,4363.7,3.2078]
[1756576806938,0.1924,4363.8,4363.7,3.2078]
[1756576807138,0.4869,4363.8,4363.7,3.4408]
[1756576807338,0.2945,4363.8,4363.7,3.4408]
[1756576808339,0.4916,4363.8,4363.7,3.4408]
[1756576808741,0.4916,4363.8,4363.7,3.2078]
[1756576809039,0.4916,4363.8,4363.7,3.4398]
[1756576809433,0.2945,4363.8,4363.7,3.4398]
[1756576809844,0.3103,4364.6,4363.7,3.4398]
[1756576810436,3.2078,4364.7,4363.7,3.4398]
[1756576811041,0.3103,4364.6,4363.7,3.4398]
[1756576811347,0.5074,4363.8,4363.7,3.2078]
[1756576811542,0.5074,4363.8,4363.7,3.4398]
[1756576813343,0.5074,4363.8,4363.7,3.2078]
[1756576813547,0.5074,4363.8,4363.7,3.4398]
[1756576815146,0.5074,4363.8,4363.7,3.2078]
[1756576815447,0.5074,4363.8,4363.7,3.4398]
[1756576815642,0.5074,4363.8,4363.7,3.2078]
[1756576815843,0.5074,4363.8,4363.7,3.4398]
[1756576819044,0.3103,4363.8,4363.7,3.4398]
[1756576819542,0.5074,4364.5,4363.7,3.4398]
[1756576820244,0.3103,4364.5,4363.8,0.41245]
[1756576820550,3.4049,4364.7,4363.9,0.64444]
[1756576820744,0.3103,4364.8,4364.4,3.2078]
[1756576820946,0.3103,4364.8,4364.5,0.232]
[1756576821645,3.5181,4365.3,4364.5,0.232]
[1756576822246,3.7152,4365.3,4364.5,0.232]
[1756576823346,0.5074,4365.3,4364.5,0.232]
[1756576823549,0.3103,4365.2,4365.0,3.2078]
[1756576823753,0.5074,4365.2,4365.1,0.232]
[1756576827652,0.1971,4365.2,4365.1,0.232]
[1756576827854,0.5074,4365.2,4365.1,0.232]
[1756576835460,0.3103,4366.1,4365.1,0.232]
[1756576835863,3.2078,4366.2,4365.1,0.46105999]
[1756576836161,0.61049346,4366.1,4365.1,0.46105999]
[1756576836457,0.3103,4366.1,4365.1,0.46105999]
[1756576836760,3.2078,4366.2,4365.1,0.46105999]
[1756576836961,0.3103,4366.0,4365.2,0.22905999]
[1756576837457,3.2078,4366.2,4365.1,0.41560485]
[1756576837661,0.2817,4366.1,4365.2,0.22905999]
[1756576838160,3.2078,4366.7,4365.5,3.2078]
[1756576838362,0.4779,4365.7,4365.6,0.232]
[1756576845065,0.1962,4365.7,4365.5,3.2078]
[1756576845371,3.2078,4366.2,4365.5,3.2078]
[1756576845372,0.4779,4365.6,4365.5,3.2078]
[1756576845669,0.4779,4365.6,4365.5,3.4398]
[1756576846665,0.4779,4365.6,4365.5,3.2078]
[1756576846868,0.4779,4365.0,4364.9,3.2078]
[1756576847066,0.4779,4365.0,4364.9,3.4398]
[1756576850958,0.4779,4365.0,4364.9,3.2078]
[1756576851158,0.4779,4365.0,4364.9,3.4398]
[1756576852564,3.2078,4366.2,4364.9,3.4398]
[1756576852771,0.2817,4366.0,4364.9,3.4398]
[1756576852975,0.22907001,4366.1,4364.9,3.66887]
[1756576853274,0.2817,4365.8,4364.9,3.66887]
[1756576853465,0.22907001,4366.1,4364.9,3.66887]
[1756576853662,0.6151803,4366.0,4364.9,3.66887]
[1756576853876,0.2817,4366.0,4364.9,3.66887]
[1756576854068,0.2817,4366.1,4364.9,3.66887]
[1756576854269,0.2817,4365.9,4364.9,3.66887]
[1756576854471,0.61518032,4366.0,4364.9,3.66887]
[1756576854472,0.2817,4366.0,4364.9,3.66887]
[1756576854774,3.2078,4366.2,4364.9,3.66887]
[1756576854976,0.2817,4366.0,4364.9,3.66887]
[1756576855171,0.22907001,4366.1,4364.9,3.66887]
[1756576855372,0.2817,4365.9,4364.9,3.66887]
[1756576855667,3.2078,4366.2,4364.9,3.66887]
[1756576855879,0.2817,4366.0,4364.9,3.66887]
[1756576856072,0.22907001,4366.1,4364.9,3.66887]
[1756576856274,0.2817,4365.9,4364.9,3.66887]
[1756576856474,0.2817,4366.0,4364.9,3.66887]
[1756576856677,3.2078,4366.2,4364.9,3.66887]
[1756576856874,0.2817,4366.0,4364.9,3.66887]
[1756576857174,0.22907001,4366.1,4364.9,3.66887]
[1756576857369,0.84438983,4366.0,4364.9,3.66887]
[1756576857568,3.2078,4366.2,4364.9,3.66887]
[1756576857569,0.22907001,4366.1,4364.9,3.66887]
[1756576857772,0.2817,4365.9,4364.9,3.4398]
[1756576857974,0.4779,4365.9,4365.0,0.22907]
[1756576858372,0.4779,4365.9,4365.1,0.22907]
[1756576858573,0.4779,4365.9,4365.2,0.232]
[1756576860372,0.2817,4365.8,4364.9,3.2078]
[1756576860677,0.4779,4365.0,4364.9,3.2078]
[1756576860870,0.4779,4365.0,4364.9,3.4398]
[1756576863465,0.4779,4365.0,4364.9,3.2078]
[1756576863665,0.4779,4365.0,4364.9,3.4398]
[1756576864068,0.4779,4365.0,4364.9,3.2078]
[1756576864275,0.4779,4365.0,4364.9,3.4398]
[1756576865777,0.4779,4365.0,4364.9,0.232]
[1756576865974,0.1962,4364.5,4364.4,3.2078]
[1756576866180,0.2817,4364.4,4363.9,3.2078]
[1756576866372,0.4779,4364.0,4363.9,3.2078]
[1756576866573,0.4779,4364.0,4363.9,3.4398]
[1756576868081,0.4779,4364.0,4363.9,3.2078]
[1756576868275,0.4779,4364.0,4363.9,3.4398]
[1756576868474,0.4779,4364.0,4363.9,3.2078]
[1756576868680,0.4779,4364.0,4363.9,3.4398]
[1756576869878,0.4779,4364.0,4362.9,32.995]
[1756576869879,0.4776,4363.4,4363.3,3.2078]
[1756576870083,0.4776,4363.4,4363.3,3.4398]
[1756576871480,0.2875,4364.4,4363.3,7.4398]
[1756576871680,0.4776,4364.3,4363.8,3.2078]
[1756576871985,0.4776,4364.3,4363.9,0.232]
[1756576872185,3.2078,4365.1,4363.9,0.232]
[1756576872480,0.4776,4364.7,4363.9,0.232]
[1756576874183,0.4776,4364.7,4363.8,3.2078]
[1756576874382,0.4776,4363.9,4363.8,3.2078]
[1756576874577,0.4776,4363.9,4363.8,3.4398]
[1756576874775,0.2875,4363.9,4363.8,3.4398]
[1756576875078,3.2078,4365.1,4363.8,3.4398]
[1756576875283,0.22912,4365.0,4363.8,3.4398]
[1756576875783,0.2875,4364.9,4363.8,3.4398]
[1756576875983,0.22913,4364.9,4363.8,3.4398]
[1756576876183,0.2875,4365.0,4363.8,3.4398]
[1756576876378,0.22912,4365.0,4363.8,3.4398]
[1756576876579,0.22913,4364.9,4363.8,3.4398]
[1756576876780,3.2078,4365.1,4363.8,3.4398]
[1756576877082,0.22912,4365.0,4363.8,3.4398]
[1756576877282,0.22913,4364.9,4363.8,3.4398]
[1756576877584,0.2875,4364.9,4363.8,3.4398]
[1756576877883,0.4776,4364.7,4363.8,3.4398]
[1756576878790,0.1901,4364.7,4363.8,3.4398]
[1756576878991,0.4776,4364.6,4363.8,3.4398]
[1756576879386,0.1901,4364.6,4363.8,3.4398]
[1756576879588,0.4776,4364.5,4363.8,3.4398]
[1756576881894,0.1901,4364.5,4363.8,3.2078]
[1756576882193,0.4776,4364.3,4363.9,0.232]
[1756576882494,0.1901,4363.9,4363.8,3.2078]
[1756576882792,0.4776,4363.9,4363.8,3.4398]
[1756576883182,0.4776,4363.9,4363.8,3.2078]
[1756576883393,0.2875,4363.9,4363.8,3.4398]
[1756576886195,0.2875,4365.0,4363.8,3.4398]
[1756576886405,0.22912,4365.0,4363.8,3.4398]
[1756576886695,0.22913,4364.9,4363.8,3.4398]
[1756576886887,0.22912,4365.0,4363.8,3.4398]
[1756576887090,0.2875,4364.9,4363.8,3.4398]
[1756576887287,0.22913,4364.9,4363.8,3.4398]
[1756576887597,0.22913,4364.8,4363.8,3.4398]
[1756576887896,0.22912,4365.0,4363.8,3.4398]
[1756576888288,0.22913,4364.9,4363.8,3.4398]
[1756576888488,0.22912,4365.0,4363.8,3.4398]
[1756576888998,0.4776,4365.0,4363.9,0.22913]
[1756576889200,0.4776,4365.0,4364.0,0.41243]
[1756576889395,0.4776,4365.0,4364.1,0.232]
[1756576889995,0.4776,4365.0,4364.1,0.64442]
[1756576890792,0.1901,4365.0,4364.3,3.2078]
[1756576891091,0.4776,4364.9,4364.3,3.2078]
[1756576891701,0.1901,4364.9,4364.3,3.2078]
[1756576891998,3.2078,4365.6,4364.3,3.2078]
[1756576891999,0.1901,4364.7,4364.3,3.2078]
[1756576892200,0.2875,4364.6,4364.3,3.2078]
[1756576892400,0.2291,4365.5,4364.3,3.2078]
[1756576892601,0.2875,4365.3,4364.3,3.2078]
[1756576892802,0.2875,4365.1,4364.3,3.2078]
[1756576893103,0.2875,4365.4,4364.3,3.2078]
[1756576893295,0.61443204,4365.3,4364.3,3.2078]
[1756576893601,0.4776,4365.0,4364.3,3.2078]
[1756576893796,0.2875,4364.9,4364.3,3.2078]
[1756576894002,0.4776,4364.9,4364.3,3.2078]
[1756576894304,0.2875,4364.9,4364.3,3.2078]
[1756576894700,0.4776,4365.5,4364.5,0.41238]
[1756576894899,0.1901,4365.4,4364.6,0.232]
[1756576895203,3.2078,4365.6,4364.6,0.232]
[1756576895204,0.1901,4365.3,4364.8,3.2078]
[1756576895390,0.2875,4365.1,4364.8,3.2078]
[1756576896604,0.2875,4366.0,4364.8,3.2078]
[1756576896805,0.2875,4365.8,4364.8,3.2078]
[1756576897004,0.61454075,4365.9,4364.8,3.2078]
[1756576897005,0.2875,4365.6,4364.8,3.2078]
[1756576897198,0.22907001,4366.0,4364.8,3.2078]
[1756576897199,0.206,4365.4,4364.8,3.2078]
[1756576897398,0.2902,4365.2,4364.8,3.2078]
[1756576897598,0.2902,4365.1,4364.8,3.2078]
[1756576897799,0.2902,4366.0,4364.8,3.2078]
[1756576898103,0.61443852,4365.9,4364.8,3.2078]
[1756576898304,0.61443852,4365.8,4364.8,3.2078]
[1756576898503,0.206,4365.6,4364.8,3.2078]
[1756576898704,0.4962,4365.5,4364.8,3.2078]
[1756576900106,0.2902,4365.5,4364.8,3.2078]
[1756576900303,0.2902,4365.9,4364.8,3.62015]
[1756576900498,0.4962,4365.9,4365.3,3.2078]
[1756576900705,3.2078,4366.1,4365.4,0.232]
[1756576900706,0.2902,4365.8,4365.4,0.232]
[1756576901198,33.166,4367.1,4364.8,3.2078]
[1756576901199,0.2902,4365.3,4364.8,3.2078]
[1756576901507,0.4962,4364.9,4364.8,3.2078]
[1756576901708,0.4962,4364.9,4364.8,3.4398]
[1756576902506,0.2902,4364.9,4364.8,3.4398]
[1756576903608,0.4962,4364.9,4364.8,3.4398]
[1756576903906,0.4962,4364.9,4364.8,3.4408]
[1756576906403,0.2902,4364.9,4364.8,3.4408]
[1756576906712,0.4962,4365.4,4364.8,3.4408]
[1756576907709,0.206,4365.4,4364.8,3.4408]
[1756576907910,0.2902,4365.4,4364.8,3.4408]
[1756576908209,3.2078,4365.5,4364.8,3.4408]
[1756576908509,0.2902,4365.4,4364.8,3.4408]
[1756576908809,3.2078,4365.5,4364.8,3.4408]
[1756576909508,0.2902,4365.4,4364.8,3.4408]
[1756576909702,0.206,4364.9,4364.8,3.4408]
[1756576909902,0.4962,4364.9,4364.8,3.2078]
[1756576910105,0.4962,4364.9,4364.8,3.4408]
[1756576911009,0.4962,4364.9,4364.8,3.4398]
[1756576913708,3.2078,4365.5,4364.8,3.4398]
[1756576913709,0.4962,4365.4,4364.8,3.4398]
[1756576913910,0.206,4365.4,4364.8,3.4398]
[1756576914111,3.2078,4365.5,4364.8,3.4398]
[1756576914504,0.2902,4365.4,4364.8,3.2078]
[1756576914706,0.2902,4365.4,4364.9,0.232]
[1756576919221,0.4962,4365.0,4364.9,0.232]
[1756576919422,0.206,4365.0,4364.8,3.2078]
[1756576919629,0.4962,4364.9,4364.8,3.2078]
[1756576920018,0.4962,4364.9,4364.8,3.4398]
[1756576921425,0.2902,4364.9,4364.8,3.4398]
[1756576921624,3.2078,4365.5,4364.8,3.4398]
[1756576921922,0.82101989,4365.4,4364.8,3.4398]
[1756576922117,0.4962,4365.4,4364.8,3.4398]
[1756576922313,0.206,4365.3,4364.8,3.4398]
[1756576922515,0.2902,4365.4,4364.8,3.4398]
[1756576922720,0.4962,4365.4,4364.8,3.4398]
[1756576923025,0.206,4365.3,4364.8,3.4398]
[1756576923221,0.2902,4365.1,4364.8,3.4398]
[1756576923524,3.2078,4365.5,4364.8,3.4398]
[1756576923826,0.206,4364.9,4364.8,3.4398]
[1756576924030,0.4962,4364.9,4364.8,3.4398]
[1756576925120,0.4962,4364.9,4364.8,3.2078]
[1756576925517,0.4962,4364.9,4364.8,3.4398]
[1756576927331,0.4962,4364.9,4364.8,3.2078]
[1756576927627,0.4962,4364.9,4364.8,3.4398]
[1756576928428,0.4962,4364.9,4364.8,3.2078]
[1756576928830,0.4962,4364.9,4364.8,3.4398]
[1756576929629,0.4962,4364.9,4364.8,3.2078]
[1756576929828,0.4962,4364.9,4364.8,3.4398]
[1756576930535,0.4962,4364.9,4364.8,3.2078]
[1756576930728,0.4962,4364.9,4364.8,3.4398]
[1756576933328,0.2902,4364.9,4364.8,3.4398]
[1756576935534,0.4959,4364.9,4364.8,3.4398]
[1756576936236,0.4959,4364.9,4364.8,0.232]
[1756576937738,0.2902,4364.9,4364.8,0.232]
[1756576937941,0.4869,4365.4,4364.8,0.232]
[1756576938137,0.82117939,4365.3,4364.8,0.232]
[1756576938340,0.2812,4365.1,4364.8,0.232]
[1756576938542,0.2812,4365.0,4364.8,0.232]
[1756576939242,0.2812,4365.4,4364.8,0.232]
[1756576939442,3.2078,4365.5,4364.8,0.232]
[1756576939443,0.2812,4365.2,4364.8,0.232]
[1756576939743,0.4869,4365.2,4364.8,0.232]
[1756576940039,0.4869,4365.5,4364.8,3.4398]
[1756576940341,0.4869,4366.0,4364.8,3.85215]
[1756576940538,0.61578926,4365.9,4365.3,3.2078]
[1756576940739,0.2812,4366.0,4365.4,0.232]
[1756576940935,0.89702252,4365.9,4365.4,0.232]
[1756576941137,0.2812,4365.9,4365.4,0.232]
[1756576942355,0.2812,4366.2,4365.4,0.232]
[1756576942653,0.4869,4366.0,4365.4,0.41511785]
[1756576943247,0.2812,4366.0,4365.4,0.41511785]
[1756576943454,0.2812,4366.2,4365.4,0.64417784]
[1756576943753,0.2812,4366.2,4365.4,1.05645785]
[1756576944152,0.4869,4366.2,4365.4,1.05645785]
[1756576944354,0.4869,4366.2,4365.4,0.64416785]
[1756576944749,0.4869,4366.2,4365.4,0.41511785]
[1756576944949,0.2057,4366.2,4365.4,0.41511785]
[1756576945150,0.2812,4366.0,4365.4,0.41511785]
[1756576945349,0.4869,4366.0,4365.4,0.41511785]
[1756576946656,0.4869,4365.9,4365.4,0.41511785]
[1756576947059,0.2812,4365.8,4365.4,0.41511785]
[1756576947552,3.2078,4366.8,4365.4,0.41511785]
[1756576947758,0.61264277,4366.7,4365.4,0.41511785]
[1756576948056,0.61264277,4366.6,4365.4,0.41511785]
[1756576948260,0.61264277,4366.5,4365.4,0.41511785]
[1756576948450,0.61264277,4366.4,4365.4,0.41511785]
[1756576948650,3.2078,4366.8,4365.4,0.41511785]
[1756576948953,0.61256848,4366.7,4365.4,0.41511785]
[1756576949152,0.61256848,4366.6,4365.4,0.41511785]
[1756576949353,0.61256848,4366.5,4365.4,0.41511785]
[1756576949548,0.2812,4366.3,4365.4,0.41511785]
[1756576949756,0.2812,4366.7,4365.4,0.41511785]
[1756576950058,0.2812,4366.5,4365.4,0.41511785]
[1756576950255,0.2812,4366.7,4365.4,0.41511785]
[1756576950458,0.4869,4365.5,4365.4,0.18311785]
[1756576950756,0.4869,4365.5,4365.4,0.232]
[1756576950958,0.2812,4365.5,4365.4,0.41921605]
[1756576951158,3.2078,4366.8,4365.4,0.41921605]
[1756576951353,0.84146205,4366.7,4365.4,0.41921605]
[1756576951545,0.2812,4366.5,4365.4,0.41921605]
[1756576951750,0.2812,4366.3,4365.4,0.41921605]
[1756576951957,0.22904,4366.7,4365.4,0.41921605]
[1756576952153,0.2812,4366.5,4365.4,0.41921605]
[1756576952454,0.61240441,4366.4,4365.4,0.41921605]
[1756576952644,0.2812,4366.6,4365.4,0.41921605]
[1756576952846,0.22904,4366.7,4365.4,0.41921605]
[1756576952847,0.2812,4366.4,4365.4,0.41921605]
[1756576953048,0.22904,4366.7,4365.4,0.41921605]
[1756576953049,0.2812,4366.6,4365.4,0.41921605]
[1756576953245,0.22904,4366.7,4365.4,0.41921605]
[1756576953246,0.2812,4366.4,4365.4,0.41921605]
[1756576953453,0.22904,4366.7,4365.4,0.41921605]
[1756576953656,0.61232355,4366.6,4365.4,0.41921605]
[1756576953848,0.2812,4366.4,4365.4,0.41921605]
[1756576954045,0.2812,4366.7,4365.4,0.83150605]
[1756576954251,0.61232663,4366.6,4365.5,0.22904]
[1756576954559,0.89352663,4366.5,4365.5,0.22904]
[1756576954752,0.2812,4366.7,4365.4,0.41921605]
[1756576955060,0.2812,4366.5,4365.5,0.22904]
[1756576955456,3.2078,4366.8,4365.4,0.41921605]
[1756576955758,0.89347954,4366.7,4365.5,0.22904]
[1756576956059,0.2812,4366.5,4365.5,0.22904]
[1756576956256,0.2812,4366.7,4365.4,0.41921605]
[1756576956461,0.2812,4366.5,4365.5,0.22904]
[1756576956961,3.2078,4366.8,4365.4,0.41921605]
[1756576957154,0.2812,4366.6,4365.5,0.22904]
[1756576957354,0.197,4366.4,4365.9,3.2078]
[1756576957661,3.43683,4366.8,4366.0,0.232]
[1756576957960,0.89546954,4366.7,4366.0,0.232]
[1756576958262,0.2832,4366.5,4366.0,0.232]
[1756576959960,0.4802,4366.1,4366.0,0.232]
[1756576960650,3.2078,4368.0,4366.0,4.87327]
[1756576960860,0.2832,4367.8,4366.6,3.2078]
[1756576961062,0.612437,4367.7,4366.7,0.232]
[1756576961258,0.2832,4367.6,4366.7,0.232]
[1756576961459,0.51218001,4367.6,4366.7,0.232]
[1756576961658,0.2832,4367.6,4366.7,0.232]
[1756576964564,0.4802,4366.8,4366.7,0.232]
[1756576974068,0.197,4366.8,4366.6,3.2078]
[1756576974273,0.4802,4366.7,4366.6,3.2078]
[1756576974770,0.4802,4366.7,4366.6,3.4398]
[1756576978972,0.4802,4366.7,4366.6,3.2078]
[1756576979167,0.4802,4366.7,4366.6,3.4398]
[1756576979769,0.4802,4366.7,4366.6,3.2078]
[1756576980166,0.4802,4366.7,4366.6,3.4398]
[1756576980361,3.2078,4367.5,4366.1,3.2078]
[1756576980362,0.197,4366.2,4366.1,3.2078]
[1756576980563,0.4802,4366.2,4366.1,3.4398]
[1756576983570,0.4802,4366.2,4366.1,3.2078]
[1756576983873,0.4802,4366.2,4366.1,3.4398]
[1756576984571,0.4802,4366.2,4366.1,3.2078]
[1756576984875,0.232,4368.0,4365.5,3.2078]
[1756576984876,0.197,4365.6,4365.5,3.2078]
[1756576985173,0.4802,4365.6,4365.5,3.4398]
[1756576985571,3.2078,4366.7,4365.5,3.4398]
[1756576985872,0.22902,4367.3,4366.0,3.2078]
[1756576986175,0.2832,4367.1,4366.1,0.232]
[1756576986677,0.2832,4367.7,4366.1,0.232]
[1756576986976,0.4802,4366.6,4366.5,3.2078]
[1756576987176,0.4802,4366.6,4366.5,3.4398]
[1756576987377,0.4802,4366.6,4366.5,3.2078]
[1756576987572,0.4802,4366.6,4366.5,3.4398]
[1756576987966,0.71141,4366.6,4366.5,0.232]
[1756576988768,0.4824,4366.6,4366.5,0.232]
[1756576989473,0.4877,4367.0,4366.5,3.4398]
[1756576989675,0.2854,4366.8,4366.5,3.4398]
[1756576989875,0.22898001,4367.7,4366.5,3.4398]
[1756576990072,0.2854,4367.5,4366.5,3.4398]
[1756576990378,0.4877,4367.2,4366.5,3.4398]
[1756576990775,0.2854,4367.7,4366.5,3.4398]
[1756576990975,3.2078,4367.8,4366.5,3.4398]
[1756576990976,0.4877,4367.5,4366.5,3.4398]
[1756576991175,0.2023,4367.5,4366.5,3.4398]
[1756576991376,3.2078,4367.8,4366.5,3.4398]
[1756576991678,0.61118021,4367.7,4366.5,3.4398]
[1756576991874,0.61118021,4367.6,4366.5,3.4398]
[1756576992078,0.2854,4367.4,4366.5,3.4398]
[1756576992270,0.2023,4367.4,4366.5,3.4398]
[1756576992470,0.4877,4367.3,4366.5,3.4398]
[1756576992674,0.2854,4367.2,4366.5,3.4398]
[1756576992875,0.4877,4367.2,4366.5,3.4398]
[1756576993075,3.2078,4367.8,4366.5,3.4398]
[1756576993276,0.2854,4367.6,4366.5,3.4398]
[1756576993472,0.2854,4367.3,4366.5,3.2078]
[1756576993671,0.4877,4366.7,4366.6,0.232]
[1756576995381,3.2078,4367.8,4366.6,0.232]
[1756576995685,0.2023,4366.7,4366.6,0.232]
[1756576995885,0.4877,4366.7,4366.6,0.232]
[1756576996275,0.2854,4367.7,4366.6,0.232]
[1756576996482,0.2854,4367.5,4366.6,0.232]
[1756576998589,0.4877,4366.6,4366.5,3.2078]
[1756576998784,0.4877,4366.6,4366.5,3.4398]
[1756577002785,0.4877,4366.6,4366.5,3.2078]
[1756577002985,0.4877,4366.6,4366.5,3.4398]
[1756577004192,0.2854,4366.6,4366.5,3.4398]
[1756577004788,0.4877,4366.6,4366.5,3.4398]
[1756577007390,0.2854,4366.6,4366.5,3.4398]
[1756577007991,0.4877,4366.6,4366.5,3.4398]
[1756577008292,0.2854,4367.7,4366.5,3.4398]
[1756577008498,0.2854,4367.5,4366.5,3.4398]
[1756577008699,0.2854,4367.3,4366.5,3.4398]
[1756577008996,0.4877,4367.1,4366.5,3.4398]
[1756577010596,0.4877,4367.3,4366.5,3.4398]
[1756577010899,0.4877,4367.6,4366.5,3.4398]
[1756577011095,0.4877,4367.6,4366.6,0.22898]
[1756577011399,0.4877,4367.6,4366.7,0.232]
[1756577011601,0.4877,4367.5,4366.7,0.46098]
[1756577011802,0.4877,4367.4,4366.7,0.232]
[1756577013704,0.2023,4367.4,4367.0,3.2078]
[1756577013905,3.2078,4367.8,4367.1,0.232]
[1756577013906,0.2854,4367.2,4367.1,0.232]
[1756577014107,0.2023,4367.2,4367.0,3.2078]
[1756577014408,0.4877,4367.1,4367.0,3.2078]
[1756577014603,0.4877,4367.1,4367.0,3.4398]
[1756577014904,0.2854,4367.7,4367.0,3.4398]
[1756577015508,3.2078,4367.8,4367.0,3.4398]
[1756577016298,0.2854,4367.7,4367.0,3.4398]
[1756577016505,0.4877,4367.1,4367.0,3.4398]
[1756577016805,0.4877,4367.1,4367.0,3.2078]
[1756577017106,0.4877,4367.1,4367.0,3.4398]
[1756577018508,0.4877,4367.1,4367.0,3.2078]
[1756577018708,0.4877,4367.1,4367.0,3.4398]
[1756577021106,0.4877,4367.1,4367.0,0.232]
[1756577021313,0.2033,4367.0,4366.5,3.2078]
[1756577021510,0.2033,4366.9,4366.6,0.232]
[1756577021714,0.3058,4366.8,4366.6,0.46098]
[1756577021914,0.3058,4367.7,4366.6,0.232]
[1756577022109,0.3058,4367.6,4366.7,0.232]
[1756577023517,0.3058,4366.7,4366.5,3.2078]
[1756577023716,0.5091,4366.7,4366.6,0.232]
[1756577024811,0.2033,4366.7,4366.5,3.2078]
[1756577025019,0.5091,4366.6,4366.5,3.2078]
[1756577025315,0.5091,4366.6,4366.5,3.4398]
[1756577032717,0.5091,4366.6,4366.5,3.2078]
[1756577033014,0.5091,4366.6,4366.5,3.4398]
[1756577034823,0.3058,4366.6,4366.5,3.4398]
[1756577035022,0.3058,4367.7,4366.5,3.4398]
[1756577035319,0.2033,4366.6,4366.5,3.4398]
[1756577035518,0.5091,4366.6,4366.5,3.4398]
[1756577037024,0.3058,4366.6,4366.5,3.4398]
[1756577038210,0.3058,4367.7,4366.5,3.4398]
[1756577038416,0.3058,4367.5,4366.5,3.4398]
[1756577038615,0.3058,4367.3,4366.5,3.4398]
[1756577038822,0.5091,4367.3,4366.5,3.4398]
[1756577039022,0.3058,4367.3,4366.5,3.4398]
[1756577039621,0.5091,4367.3,4366.5,3.4398]
[1756577042321,0.2033,4367.3,4366.5,3.4398]
[1756577042624,0.5091,4367.2,4366.5,3.4398]
[1756577043120,0.2033,4367.1,4366.5,3.2078]
[1756577043420,0.5091,4366.6,4366.5,3.2078]
[1756577043622,0.5091,4366.6,4366.5,3.4398]
[1756577054329,0.70031723,4366.6,4366.5,3.4398]
[1756577057432,0.70031723,4366.6,4366.5,3.2078]
[1756577057631,0.70031723,4366.6,4366.5,3.4398]
[1756577057828,0.70032557,4366.6,4366.5,3.4398]
[1756577058028,0.70032621,4366.6,4366.5,3.4398]
[1756577058733,0.70032347,4366.6,4366.5,3.4398]
[1756577059534,0.70032347,4366.6,4366.5,3.2078]
[1756577059836,0.70032347,4366.6,4366.5,3.4398]
[1756577060234,0.70032347,4366.6,4366.5,3.2078]
[1756577060435,0.70032347,4366.6,4366.5,3.4398]
[1756577067931,0.49702347,4366.6,4366.5,3.4398]
[1756577068136,0.19122347,4366.6,4366.5,3.4398]
[1756577068433,3.2078,4367.3,4366.5,3.4398]
[1756577068640,0.3082,4366.9,4366.5,3.4398]
[1756577068840,0.19146813,4366.8,4366.5,3.4398]
[1756577069040,0.19146813,4366.7,4366.5,3.4398]
[1756577069240,0.19146813,4366.6,4366.5,3.4398]
[1756577071836,0.19146813,4366.6,4366.5,7.66881]
[1756577072041,0.3082,4367.6,4366.5,7.66881]
[1756577072243,0.61117606,4367.5,4367.0,3.2078]
[1756577072539,0.5085,4367.7,4367.1,0.232]
[1756577072744,0.91930394,4367.6,4367.1,0.232]
[1756577072938,0.61110394,4367.5,4367.1,0.232]
[1756577073138,0.3082,4367.6,4367.1,0.232]
[1756577073338,0.61103768,4367.5,4367.1,0.232]
[1756577073536,0.3082,4367.6,4367.1,0.232]
[1756577073737,0.61104146,4367.5,4367.1,0.232]
[1756577074042,0.3082,4367.6,4367.1,0.232]
[1756577074246,3.516,4367.8,4367.1,0.232]
[1756577074437,0.61091045,4367.7,4367.1,0.232]
[1756577074638,0.91911045,4367.6,4367.1,0.232]
[1756577074834,0.3082,4367.9,4367.2,0.64108999]
[1756577075043,0.5085,4367.9,4367.3,0.232]
[1756577075733,0.2003,4367.8,4367.3,0.232]
[1756577075934,3.2078,4368.4,4367.3,0.232]
[1756577076140,0.61064648,4368.3,4367.0,3.2078]
[1756577076446,0.5085,4367.1,4367.0,3.2078]
[1756577076747,0.5085,4367.1,4367.0,3.4398]
[1756577080447,3.2078,4367.9,4367.0,3.4398]
[1756577080747,0.83924894,4367.8,4367.0,3.4398]
[1756577080948,0.4948,4367.1,4367.0,3.4398]
[1756577083243,0.2906,4367.8,4367.0,3.4398]
[1756577083438,0.2906,4367.6,4367.0,3.4398]
[1756577084244,0.4948,4367.6,4367.0,3.4398]
[1756577084549,0.2906,4367.5,4367.0,3.4398]
[1756577084747,0.2906,4367.4,4367.0,3.4398]
[1756577085148,3.2078,4367.9,4367.0,3.4398]
[1756577085349,0.2906,4367.7,4367.0,3.4398]
[1756577085549,0.4948,4367.6,4367.0,3.4398]
[1756577090051,0.2906,4367.6,4367.0,3.66876999]
[1756577090250,3.4984,4367.9,4367.0,3.4398]
[1756577090452,3.4984,4367.9,4367.1,0.22896999]
[1756577090847,0.4948,4367.8,4367.0,3.4398]
[1756577091147,0.4948,4367.8,4367.1,0.22896999]
[1756577091652,0.2042,4367.8,4367.0,3.4398]
[1756577091846,0.2042,4367.7,4367.0,3.66876999]
[1756577092048,0.4948,4367.6,4367.0,3.66876999]
[1756577092352,0.4948,4367.5,4367.0,3.66876999]
[1756577092554,3.2078,4367.9,4367.0,3.66876999]